bitfinex/quotes_BTCUSD_20241202
["timestamp","ask_amount","ask_price","bid_price","bid_amount"]
[1733118062568,0.00387629,96732.0,96725.0,0.0008654]
[1733118062792,0.206757,96732.0,96725.0,0.0008654]
[1733118063235,0.206761,96730.0,96725.0,0.0008654]
[1733118063501,0.206763,96729.0,96725.0,0.0008654]
[1733118063725,0.21063751,96729.0,96725.0,0.00078768]
[1733118064608,0.21063751,96729.0,96725.0,0.00278768]
[1733118065277,0.21063751,96729.0,96725.0,0.00378768]
[1733118065721,0.00387451,96729.0,96725.0,0.00278768]
[1733118066012,0.206755,96733.0,96725.0,0.00078768]
[1733118066242,0.206755,96733.0,96725.0,0.00578768]
[1733118066243,0.00389381,96728.0,96725.0,0.00578768]
[1733118066671,0.206756,96732.0,96725.0,0.00578768]
[1733118066891,0.00388794,96727.0,96725.0,0.00578768]
[1733118067116,0.206756,96732.0,96725.0,0.00278768]
[1733118067364,0.206756,96732.0,96725.0,0.00478768]
[1733118067365,0.00387456,96726.0,96725.0,0.00478768]
[1733118067559,0.206731,96744.0,96726.0,0.206769]
[1733118067788,0.206746,96737.0,96727.0,0.0462]
[1733118068239,0.206746,96737.0,96728.0,0.206765]
[1733118068734,0.206746,96737.0,96728.0,0.10284521]
[1733118069144,0.206741,96739.0,96728.0,0.10284521]
[1733118069799,0.206743,96738.0,96728.0,0.10284521]
[1733118070019,0.206743,96738.0,96728.0,0.10484521]
[1733118070240,0.206743,96738.0,96728.0,0.10784521]
[1733118070473,0.206743,96738.0,96729.0,0.206763]
[1733118071165,0.206743,96738.0,96728.0,0.10284521]
[1733118071398,0.206743,96738.0,96728.0,0.10384521]
[1733118071838,0.01377262,96741.0,96728.0,0.10284521]
[1733118072360,0.206736,96742.0,96729.0,0.002]
[1733118072361,0.206751,96735.0,96729.0,0.002]
[1733118072747,0.206751,96735.0,96728.0,0.10284521]
[1733118073181,0.01378596,96742.0,96728.0,0.10484521]
[1733118073381,0.206757,96732.0,96728.0,0.10484521]
[1733118073739,0.10510488,96750.0,96728.0,0.10484521]
[1733118073740,0.00387657,96731.0,96729.0,0.17904521]
[1733118073949,0.0154837,96759.0,96729.0,0.10284521]
[1733118074158,0.206703,96757.0,96741.0,0.046]
[1733118074365,0.206711,96753.0,96743.0,0.206733]
[1733118074588,0.00385859,96752.0,96744.0,0.10467459]
[1733118075032,0.206711,96753.0,96744.0,0.10467459]
[1733118075331,0.206707,96755.0,96744.0,0.00182938]
[1733118075536,0.413422,96753.0,96742.0,0.046]
[1733118075738,0.00388601,96752.0,96742.0,0.046]
[1733118076167,0.413459,96745.0,96742.0,0.046]
[1733118076403,0.206733,96743.0,96742.0,0.046]
[1733118076615,0.00385386,96744.0,96742.0,0.046]
[1733118076823,0.00385327,96743.0,96742.0,0.046]
[1733118077250,0.206729,96745.0,96742.0,0.046]
[1733118077939,0.00372073,96744.0,96742.0,0.046]
[1733118078157,0.206733,96743.0,96742.0,0.046]
[1733118078357,0.21061768,96743.0,96742.0,0.046]
[1733118078809,0.00388468,96743.0,96742.0,0.046]
[1733118079236,0.206732,96744.0,96742.0,0.046]
[1733118079445,0.00388306,96743.0,96742.0,0.046]
[1733118080123,0.00388306,96743.0,96733.0,0.0485]
[1733118080318,0.00388306,96743.0,96734.0,0.10284521]
[1733118080534,0.206746,96737.0,96733.0,0.0485]
[1733118080740,0.20675,96735.0,96733.0,0.0485]
[1733118080941,0.00390494,96734.0,96733.0,0.0485]
[1733118081414,0.00390494,96734.0,96733.0,0.7]
[1733118082094,0.206752,96734.0,96733.0,0.7]
[1733118082324,0.21063341,96734.0,96733.0,0.7]
[1733118082545,0.21063341,96734.0,96733.0,0.702]
[1733118083217,0.21063341,96734.0,96733.0,0.706]
[1733118084078,0.22423381,96734.0,96733.0,0.706]
[1733118084505,0.22423381,96734.0,96733.0,0.006]
[1733118086597,0.22423381,96734.0,96733.0,0.002]
[1733118087043,0.21063341,96734.0,96733.0,0.005]
[1733118087265,0.21063341,96734.0,96733.0,0.003]
[1733118088358,0.21063341,96734.0,96733.0,0.005]
[1733118089705,0.21063341,96734.0,96733.0,0.002]
[1733118090157,0.21063341,96734.0,96733.0,0.003]
[1733118090368,0.41738641,96734.0,96731.0,0.0008656]
[1733118090612,0.21063341,96734.0,96733.0,0.001]
[1733118090818,0.21063341,96734.0,96733.0,0.002]
[1733118091248,0.21063341,96734.0,96733.0,0.001]
[1733118091856,0.41738641,96734.0,96731.0,0.0008656]
[1733118092312,0.206756,96732.0,96731.0,0.0018656]
[1733118092535,0.206756,96732.0,96731.0,0.0008656]
[1733118092703,0.21063354,96732.0,96731.0,0.0008656]
[1733118093363,0.21063354,96732.0,96731.0,0.0018656]
[1733118093502,0.21063354,96732.0,96731.0,0.0008656]
[1733118093925,0.21063354,96732.0,96731.0,0.0028656]
[1733118094274,0.21063354,96732.0,96731.0,0.0038656]
[1733118095512,0.206792,96716.0,96708.0,0.07777497]
[1733118095727,0.00183007,96731.0,96712.0,0.7]
[1733118095954,0.0038561,96715.0,96712.0,0.7]
[1733118096162,0.206782,96720.0,96712.0,0.7]
[1733118096368,0.00385205,96719.0,96712.0,0.7]
[1733118096621,0.00385205,96719.0,96712.0,0.906799]
[1733118096847,0.00385205,96719.0,96713.0,0.10284521]
[1733118097049,0.00385205,96719.0,96714.0,0.7]
[1733118097235,0.206777,96723.0,96715.0,0.10284521]
[1733118097586,0.20678,96721.0,96715.0,0.10284521]
[1733118097799,0.00385265,96720.0,96715.0,0.10284521]
[1733118098007,0.00385265,96720.0,96715.0,0.80284521]
[1733118098452,0.00385265,96720.0,96716.0,0.0491]
[1733118098633,0.001,96719.0,96716.0,0.0491]
[1733118099046,0.00449163,96718.0,96717.0,0.7]
[1733118099266,0.00449163,96718.0,96717.0,0.80284521]
[1733118099476,0.00449163,96718.0,96717.0,0.88074521]
[1733118099682,0.002,96720.0,96719.0,0.023]
[1733118099884,0.002,96720.0,96719.0,0.25467489]
[1733118100089,0.206744,96738.0,96722.0,0.0476]
[1733118100285,0.0135951,96741.0,96730.0,0.0476]
[1733118100500,0.206722,96749.0,96731.0,0.39253287]
[1733118100737,0.206722,96749.0,96731.0,0.39070321]
[1733118100950,0.206728,96746.0,96731.0,0.39070321]
[1733118101165,0.206728,96746.0,96731.0,1.09070321]
[1733118101387,0.206735,96743.0,96731.0,1.00960321]
[1733118101599,0.00183007,96742.0,96731.0,0.7]
[1733118101999,0.206751,96735.0,96731.0,0.7]
[1733118102213,0.00568065,96732.0,96731.0,0.706]
[1733118102428,0.00117799,96732.0,96731.0,0.706]
[1733118102629,0.00568065,96732.0,96731.0,0.706]
[1733118102876,0.00568065,96732.0,96731.0,0.709]
[1733118108376,0.00568065,96732.0,96731.0,0.7098655]
[1733118113723,0.00568065,96732.0,96731.0,0.0098655]
[1733118114532,0.0223285,96718.0,96716.0,0.0775]
[1733118114906,0.0223285,96718.0,96717.0,0.10284521]
[1733118115877,0.0233285,96718.0,96717.0,0.10375999]
[1733118116101,0.0233285,96718.0,96717.0,0.10284521]
[1733118116323,0.0233285,96718.0,96716.0,0.009]
[1733118116324,0.2301145,96718.0,96716.0,0.009]
[1733118116526,0.20683776,96718.0,96717.0,0.006]
[1733118116768,0.20683776,96718.0,96717.0,0.706]
[1733118116972,0.20683776,96718.0,96717.0,0.7]
[1733118117179,0.206786,96718.0,96717.0,0.7]
[1733118117400,0.206786,96718.0,96717.0,0.709]
[1733118117401,0.207786,96718.0,96717.0,0.709]
[1733118117627,0.206786,96718.0,96717.0,0.7]
[1733118118286,0.207786,96718.0,96717.0,0.71]
[1733118118927,0.207786,96718.0,96717.0,0.706]
[1733118119151,0.207786,96718.0,96717.0,0.71]
[1733118119853,0.207786,96718.0,96717.0,0.01]
[1733118121145,0.207786,96718.0,96717.0,0.71]
[1733118122212,0.207786,96718.0,96717.0,0.6862771]
[1733118124100,0.230786,96718.0,96717.0,0.6862771]
[1733118125975,0.23527851,96718.0,96717.0,0.6862771]
[1733118126430,0.23474401,96718.0,96717.0,0.68327123]
[1733118126870,0.206803,96710.0,96709.0,0.7]
[1733118127370,0.2112822,96710.0,96709.0,0.7]
[1733118127812,0.2342822,96710.0,96709.0,0.7]
[1733118128459,0.2352822,96710.0,96709.0,0.709]
[1733118128664,0.2352822,96710.0,96709.0,0.7]
[1733118128884,0.2352822,96710.0,96709.0,0.702]
[1733118129095,0.2352822,96710.0,96709.0,0.708]
[1733118129316,0.2352822,96710.0,96709.0,0.008]
[1733118129530,0.2352822,96710.0,96709.0,0.002]
[1733118129949,0.2352822,96710.0,96709.0,0.003]
[1733118131995,0.2352822,96710.0,96709.0,0.0038658]
[1733118137734,0.206816,96704.0,96692.0,0.2597748]
[1733118137959,0.206823,96701.0,96693.0,0.10284521]
[1733118138591,0.00398626,96700.0,96693.0,0.10284521]
[1733118139204,0.206827,96699.0,96693.0,0.10284521]
[1733118139387,0.00416415,96700.0,96693.0,0.10284521]
[1733118139605,0.00394667,96698.0,96693.0,0.10284521]
[1733118139830,0.00394738,96699.0,96693.0,0.10684521]
[1733118140061,0.229838,96694.0,96693.0,0.01]
[1733118140264,0.23379198,96694.0,96693.0,0.01]
[1733118140971,0.23379198,96694.0,96693.0,0.006]
[1733118141179,0.23379198,96694.0,96693.0,0.01]
[1733118141387,0.23379198,96694.0,96693.0,0.004]
[1733118141817,0.206848,96689.0,96688.0,0.1]
[1733118142041,0.229848,96689.0,96688.0,0.1]
[1733118142314,0.23379465,96689.0,96688.0,0.1]
[1733118142933,0.23379465,96689.0,96688.0,0.06048347]
[1733118144044,0.23379465,96689.0,96688.0,0.06148347]
[1733118144476,0.23379465,96689.0,96688.0,0.06348347]
[1733118144680,0.23379465,96689.0,96688.0,0.06434927]
[1733118149911,0.00394665,96689.0,96688.0,0.24979448]
[1733118150371,0.00228814,96697.0,96688.0,0.24979448]
[1733118150593,0.206833,96696.0,96688.0,0.24979448]
[1733118150809,0.21077133,96696.0,96688.0,0.24979448]
[1733118151252,0.206841,96693.0,96688.0,0.24979448]
[1733118151460,0.21077133,96696.0,96688.0,0.16619448]
[1733118151461,0.413686,96692.0,96688.0,0.16619448]
[1733118151699,0.41762149,96692.0,96688.0,0.16419448]
[1733118152153,0.21077849,96692.0,96688.0,0.16419448]
[1733118153305,0.206845,96691.0,96688.0,0.16419448]
[1733118153511,0.206845,96691.0,96688.0,0.06134927]
[1733118153725,0.229848,96689.0,96688.0,0.06134927]
[1733118154206,0.23377412,96689.0,96688.0,0.06134927]
[1733118154868,0.23377412,96689.0,96688.0,0.06234927]
[1733118155522,0.23377412,96689.0,96688.0,0.06434927]
[1733118155969,0.23550612,96689.0,96688.0,0.06434927]
[1733118158592,0.24905483,96689.0,96688.0,0.06434927]
[1733118159666,0.34905483,96689.0,96688.0,0.06434927]
[1733118162501,0.33550612,96689.0,96688.0,0.06434927]
[1733118166011,0.46170612,96689.0,96688.0,0.06434927]
[1733118166960,0.46170612,96689.0,96688.0,0.06334927]
[1733118167233,0.46170612,96689.0,96688.0,0.06134927]
[1733118167462,0.46170612,96689.0,96688.0,0.06234927]
[1733118167463,0.47170612,96689.0,96688.0,0.06234927]
[1733118167686,0.47170612,96689.0,96688.0,0.06134927]
[1733118167925,0.47350836,96689.0,96688.0,0.06134927]
[1733118168150,0.48150836,96689.0,96688.0,0.06234927]
[1733118168380,0.58435357,96689.0,96688.0,0.06234927]
[1733118169054,0.58135357,96689.0,96688.0,0.06234927]
[1733118169308,0.58535357,96689.0,96688.0,0.06234927]
[1733118171579,0.48133703,96689.0,96659.0,0.06102962]
[1733118171797,0.023,96660.0,96659.0,0.10284521]
[1733118172257,0.02693067,96660.0,96659.0,0.10284521]
[1733118172477,0.229912,96659.0,96645.0,0.11352106]
[1733118172697,0.229912,96659.0,96657.0,0.10284521]
[1733118172911,0.02692247,96658.0,96657.0,0.10284521]
[1733118173169,0.02692247,96658.0,96657.0,0.10343978]
[1733118173791,0.02692247,96658.0,96657.0,0.11043978]
[1733118174262,0.02692247,96658.0,96657.0,0.10343978]
[1733118174515,0.02792247,96658.0,96657.0,0.11043978]
[1733118174968,0.00492247,96658.0,96657.0,0.11043978]
[1733118175192,0.21183747,96658.0,96657.0,0.11043978]
[1733118175639,0.21183747,96658.0,96657.0,0.11443978]
[1733118178297,0.00492247,96658.0,96657.0,0.11443978]
[1733118178527,0.207915,96658.0,96657.0,0.11443978]
[1733118178763,0.001,96658.0,96657.0,0.11443978]
[1733118178996,0.00492247,96658.0,96657.0,0.11443978]
[1733118179220,0.001,96658.0,96657.0,0.11443978]
[1733118179449,0.00492247,96658.0,96657.0,0.11443978]
[1733118179658,0.001,96658.0,96657.0,0.11443978]
[1733118179875,0.00492247,96658.0,96657.0,0.11530578]
[1733118180303,0.001,96658.0,96657.0,0.11530578]
[1733118180745,0.001,96658.0,96657.0,0.01246057]
[1733118180967,0.02628907,96658.0,96657.0,0.01246057]
[1733118181179,0.03020515,96658.0,96657.0,0.01246057]
[1733118181620,0.03020515,96658.0,96657.0,0.00846057]
[1733118182751,0.03120515,96658.0,96657.0,0.00146057]
[1733118183187,0.03120515,96658.0,96657.0,0.00246057]
[1733118183391,0.03120515,96658.0,96657.0,0.00146057]
[1733118183840,0.03520515,96658.0,96657.0,0.00146057]
[1733118187835,0.03320515,96658.0,96657.0,0.00146057]
[1733118188039,0.03420515,96658.0,96657.0,0.00146057]
[1733118188252,0.03020515,96658.0,96657.0,0.00146057]
[1733118188516,0.03220515,96658.0,96657.0,0.00146057]
[1733118196272,0.16190515,96658.0,96657.0,0.00146057]
[1733118198459,0.206953,96640.0,96639.0,0.0008651]
[1733118198726,0.358753,96640.0,96639.0,0.000945]
[1733118198923,0.4655192,96640.0,96639.0,0.000945]
[1733118199338,0.7155192,96640.0,96639.0,0.000945]
[1733118199557,0.74266613,96640.0,96639.0,0.000945]
[1733118199778,0.75646398,96640.0,96639.0,0.000945]
[1733118200120,0.72931705,96640.0,96639.0,0.000945]
[1733118200228,0.75041966,96640.0,96639.0,0.000945]
[1733118200478,0.75441966,96640.0,96639.0,0.000945]
[1733118200725,0.55057445,96640.0,96639.0,0.000945]
[1733118200940,0.55957445,96640.0,96639.0,0.000945]
[1733118201887,0.55657445,96640.0,96639.0,0.000945]
[1733118202111,0.56157445,96640.0,96639.0,0.000945]
[1733118202333,0.75341053,96640.0,96639.0,0.000945]
[1733118202966,0.66441966,96640.0,96639.0,0.000945]
[1733118203401,0.51441966,96640.0,96639.0,0.000945]
[1733118204765,0.61441966,96640.0,96639.0,0.000945]
[1733118209044,0.51441966,96640.0,96639.0,0.000945]
[1733118211104,0.61441966,96640.0,96639.0,0.000945]
[1733118211319,0.71725112,96640.0,96639.0,0.000945]
[1733118214466,0.51441966,96640.0,96639.0,0.000945]
[1733118217007,0.34067445,96640.0,96639.0,0.000945]
[1733118217263,0.25977445,96640.0,96639.0,0.000945]
[1733118217738,0.23867184,96640.0,96639.0,0.01329965]
[1733118218843,0.26167184,96640.0,96639.0,0.01329965]
[1733118220411,0.26167184,96640.0,96639.0,0.000945]
[1733118220652,0.26167184,96640.0,96639.0,0.02876342]
[1733118220881,0.26167184,96640.0,96639.0,0.01330881]
[1733118224065,0.26167184,96640.0,96639.0,0.01331973]
[1733118225149,0.26167184,96640.0,96639.0,0.000945]
[1733118226483,0.26167184,96640.0,96639.0,0.01332784]
[1733118227979,0.26167184,96640.0,96639.0,0.000945]
[1733118237558,0.26167184,96640.0,96639.0,0.01334256]
[1733118239557,0.25667184,96640.0,96639.0,0.01334256]
[1733118239787,0.24767184,96640.0,96639.0,0.01334256]
[1733118240009,0.24867184,96640.0,96639.0,0.01334256]
[1733118240460,0.24767184,96640.0,96639.0,0.01334256]
[1733118240673,0.24967184,96640.0,96639.0,0.01334256]
[1733118240893,0.25067184,96640.0,96639.0,0.01334256]
[1733118241113,0.24867184,96640.0,96639.0,0.01334256]
[1733118241321,0.24767184,96640.0,96639.0,0.01334256]
[1733118241532,0.24867184,96640.0,96639.0,0.01334256]
[1733118242839,0.24767184,96640.0,96639.0,0.01334256]
[1733118243081,0.24967184,96640.0,96639.0,0.01334256]
[1733118243314,0.24967184,96640.0,96639.0,0.01334799]
[1733118243521,0.24767184,96640.0,96639.0,0.01334799]
[1733118243764,0.24767184,96640.0,96639.0,0.01434799]
[1733118246152,0.00392099,96640.0,96639.0,0.01434799]
[1733118248382,0.03,96641.0,96640.0,0.2396482]
[1733118249835,0.03,96641.0,96640.0,0.2406482]
[1733118250297,0.03,96641.0,96640.0,0.9406482]
[1733118253022,0.03,96641.0,96640.0,0.9306482]
[1733118256883,0.03,96641.0,96640.0,0.2306482]
[1733118260106,0.03,96641.0,96640.0,0.9306482]
[1733118261512,0.0067058,96641.0,96640.0,0.9306482]
[1733118261733,0.21076586,96650.0,96641.0,0.206951]
[1733118261948,0.21076586,96650.0,96642.0,0.10284521]
[1733118262168,0.00374262,96649.0,96643.0,0.206947]
[1733118262389,0.00374262,96649.0,96644.0,0.10284521]
[1733118263028,0.00374262,96649.0,96644.0,0.80284521]
[1733118263911,0.00374262,96649.0,96644.0,0.80484521]
[1733118264137,0.00374262,96649.0,96644.0,0.80884521]
[1733118264348,0.00374262,96649.0,96644.0,0.80684521]
[1733118264765,0.00374262,96649.0,96644.0,0.80884521]
[1733118265187,0.00701411,96649.0,96644.0,0.80884521]
[1733118270172,0.21394811,96649.0,96644.0,0.80884521]
[1733118270414,0.00701411,96649.0,96644.0,0.10884521]
[1733118272556,0.00560652,96648.0,96644.0,0.10884521]
[1733118272760,0.206925,96653.0,96644.0,0.10884521]
[1733118272907,0.0056122,96652.0,96644.0,0.10884521]
[1733118273131,3.91076586,96654.0,96644.0,0.10884521]
[1733118273335,0.00561362,96653.0,96645.0,0.206942]
[1733118273558,0.00561362,96653.0,96648.0,0.206936]
[1733118273769,0.00561362,96653.0,96649.0,0.10284521]
[1733118273986,0.00561362,96653.0,96650.0,0.206931]
[1733118274140,0.00561362,96653.0,96652.0,0.206927]
[1733118274357,0.00561362,96653.0,96652.0,0.30977221]
[1733118274970,0.00561362,96653.0,96648.0,0.001]
[1733118275217,0.00561362,96653.0,96650.0,0.7]
[1733118275801,0.00561362,96653.0,96652.0,0.002]
[1733118276336,0.206925,96653.0,96652.0,0.702]
[1733118276543,0.21552947,96653.0,96652.0,0.703]
[1733118276743,0.21552947,96653.0,96652.0,0.701]
[1733118276983,0.21552947,96653.0,96652.0,0.7]
[1733118279071,0.20804406,96653.0,96652.0,0.7]
[1733118281194,0.206927,96652.0,96641.0,0.7]
[1733118281429,0.206934,96649.0,96642.0,0.10284521]
[1733118281822,0.00631,96648.0,96642.0,0.10284521]
[1733118282239,0.00631,96648.0,96644.0,0.7]
[1733118282443,0.00631,96648.0,96644.0,0.80284521]
[1733118283521,0.00631,96648.0,96644.0,0.10484521]
[1733118284170,0.206938,96647.0,96644.0,0.10484521]
[1733118284427,0.413876,96647.0,96644.0,0.10484521]
[1733118284649,0.00631001,96646.0,96644.0,0.10784521]
[1733118285064,0.00631001,96646.0,96644.0,0.10484521]
[1733118285319,0.206942,96645.0,96644.0,0.10784521]
[1733118285534,0.00630823,96645.0,96644.0,0.10584521]
[1733118285759,0.20694,96647.0,96644.0,0.10484521]
[1733118285969,0.206942,96645.0,96644.0,0.10584521]
[1733118286201,0.206942,96645.0,96644.0,0.10384521]
[1733118286202,0.21325023,96645.0,96644.0,0.10384521]
[1733118286426,0.00630823,96645.0,96644.0,0.10284521]
[1733118286667,0.00630823,96645.0,96644.0,0.10584521]
[1733118287139,0.0017306,96649.0,96644.0,0.10584521]
[1733118287347,0.21324956,96648.0,96644.0,0.10584521]
[1733118288033,0.42018556,96648.0,96644.0,0.10384521]
[1733118288272,0.21324956,96648.0,96644.0,0.10384521]
[1733118289162,0.21324956,96648.0,96644.0,0.10284521]
[1733118291210,0.00631356,96648.0,96644.0,0.10284521]
[1733118291440,0.206936,96648.0,96644.0,0.10284521]
[1733118291665,0.00552259,96647.0,96644.0,0.10284521]
[1733118292744,0.00552259,96647.0,96644.0,0.80284521]
[1733118292986,0.00552259,96647.0,96644.0,0.80384521]
[1733118293188,0.00552259,96647.0,96644.0,0.80484521]
[1733118295990,0.0017306,96649.0,96644.0,0.80484521]
[1733118296197,0.21246036,96648.0,96644.0,0.80484521]
[1733118296867,0.21246036,96648.0,96644.0,0.80384521]
[1733118297496,0.00552436,96648.0,96644.0,0.80284521]
[1733118298768,0.00552436,96648.0,96644.0,0.10284521]
[1733118299189,0.00552436,96648.0,96644.0,0.10371041]
[1733118299391,0.00552436,96648.0,96645.0,0.30978721]
[1733118299617,0.00552436,96648.0,96647.0,0.206938]
[1733118299825,0.00552436,96648.0,96647.0,0.30978321]
[1733118301082,0.00552436,96648.0,96647.0,0.31178321]
[1733118301782,0.00552436,96648.0,96647.0,0.31578321]
[1733118301993,0.00552436,96648.0,96647.0,1.01578321]
[1733118303289,0.0017306,96649.0,96647.0,1.01578321]
[1733118303528,0.0017306,96649.0,96648.0,0.10284521]
[1733118303738,0.0017306,96649.0,96648.0,0.80284521]
[1733118305044,0.0017306,96649.0,96648.0,0.80684521]
[1733118305887,0.00819187,96649.0,96648.0,0.80684521]
[1733118306513,0.38490056,96650.0,96649.0,0.206934]
[1733118306683,0.38490056,96650.0,96649.0,1.00977921]
[1733118308140,0.38490056,96650.0,96649.0,1.01277921]
[1733118308806,0.38490056,96650.0,96649.0,0.80584521]
[1733118309517,0.38490056,96650.0,96649.0,0.80784521]
[1733118311672,0.38663116,96650.0,96649.0,0.80784521]
[1733118314218,0.39201791,96650.0,96649.0,0.80784521]
[1733118319547,0.39201791,96650.0,96649.0,0.79788521]
[1733118319772,0.39003446,96650.0,96649.0,0.79788521]
[1733118321577,0.34344942,96650.0,96649.0,0.79788521]
[1733118322456,0.27875564,96650.0,96649.0,1.07688521]
[1733118322694,0.24640885,96650.0,96649.0,1.09070991]
[1733118323061,0.24640885,96650.0,96649.0,1.08870991]
[1733118323289,0.24640885,96650.0,96649.0,1.08570991]
[1733118323490,0.24740885,96650.0,96649.0,1.09170991]
[1733118323741,0.24740885,96650.0,96649.0,1.09370991]
[1733118324202,0.24740885,96650.0,96649.0,1.09170991]
[1733118324398,0.24740885,96650.0,96649.0,1.09257521]
[1733118324654,0.24740885,96650.0,96649.0,1.09857521]
[1733118326478,0.24740885,96650.0,96649.0,0.39857521]
[1733118327131,0.24740885,96650.0,96649.0,0.10575051]
[1733118327336,0.24740885,96650.0,96649.0,0.0128653]
[1733118328481,0.24640885,96650.0,96649.0,0.0068653]
[1733118329105,0.24640885,96650.0,96649.0,0.0008653]
[1733118329511,0.24640885,96650.0,96649.0,0.0038653]
[1733118329896,0.24740885,96650.0,96649.0,0.0068653]
[1733118330141,0.24640885,96650.0,96649.0,0.0008653]
[1733118330370,0.24640885,96650.0,96649.0,0.0018653]
[1733118330612,0.24640885,96650.0,96649.0,0.0028653]
[1733118334461,0.47414031,96650.0,96649.0,0.0028653]
[1733118334551,0.37130885,96650.0,96649.0,0.0028653]
[1733118335238,0.47415406,96650.0,96649.0,0.0018653]
[1733118335465,0.47415406,96650.0,96649.0,0.0008653]
[1733118335882,0.47515406,96650.0,96649.0,0.0008653]
[1733118336094,0.48880906,96650.0,96649.0,0.0008653]
[1733118336324,0.48780906,96650.0,96649.0,0.0008653]
[1733118336745,0.50180906,96650.0,96649.0,0.0018653]
[1733118337188,0.49680906,96650.0,96649.0,0.0018653]
[1733118337611,0.48780906,96650.0,96649.0,0.0008653]
[1733118337826,0.49680906,96650.0,96649.0,0.0018653]
[1733118338705,0.206947,96643.0,96640.0,0.10164252]
[1733118338984,0.252751,96641.0,96633.0,0.10525363]
[1733118339213,0.08138965,96640.0,96633.0,0.10525363]
[1733118339428,0.13255767,96640.0,96633.0,0.10525363]
[1733118340672,0.13855767,96640.0,96639.0,0.001945]
[1733118341953,0.14155767,96640.0,96639.0,0.001945]
[1733118345201,0.15543375,96640.0,96639.0,0.001945]
[1733118351088,0.306945,96644.0,96640.0,0.01907108]
[1733118351295,0.10513237,96643.0,96640.0,0.01907108]
[1733118351716,0.206951,96641.0,96640.0,0.01907108]
[1733118351919,0.20923816,96641.0,96640.0,0.01907108]
[1733118353268,0.20923816,96641.0,96640.0,0.02007108]
[1733118353481,0.17151982,96641.0,96640.0,0.01907108]
[1733118353962,0.17751982,96641.0,96640.0,0.02007108]
[1733118354206,0.30391982,96641.0,96640.0,0.02007108]
[1733118354415,0.30463266,96641.0,96640.0,0.02007108]
[1733118354641,0.30463266,96641.0,96640.0,0.02272287]
[1733118355978,0.30463266,96641.0,96639.0,1e-08]
[1733118356200,0.00228716,96640.0,96639.0,1e-08]
[1733118356643,0.00684368,96640.0,96639.0,1e-08]
[1733118356823,0.33598889,96640.0,96639.0,1e-08]
[1733118357074,0.32914521,96640.0,96639.0,1e-08]
[1733118357284,0.33369213,96640.0,96639.0,1e-08]
[1733118357560,0.33869213,96640.0,96639.0,1e-08]
[1733118357764,0.32914521,96640.0,96639.0,1e-08]
[1733118357995,0.32914521,96640.0,96639.0,0.00100001]
[1733118358207,0.33814521,96640.0,96639.0,0.00100001]
[1733118358817,0.34114521,96640.0,96639.0,0.00100001]
[1733118359199,0.44397667,96640.0,96639.0,0.00100001]
[1733118359400,0.45080083,96640.0,96639.0,0.00100001]
[1733118359616,0.34796937,96640.0,96639.0,0.00100001]
[1733118359765,0.33668464,96640.0,96639.0,1e-08]
[1733118359963,0.33214521,96640.0,96639.0,0.00086521]
[1733118360174,0.34114521,96640.0,96639.0,0.00086521]
[1733118361829,0.34796065,96640.0,96639.0,0.00086521]
[1733118362029,0.34114521,96640.0,96639.0,0.00086521]
[1733118362844,0.34795202,96640.0,96639.0,0.00086521]
[1733118363050,0.34114521,96640.0,96639.0,0.00086521]
[1733118363472,0.34114521,96640.0,96639.0,0.03519521]
[1733118364720,0.34792281,96640.0,96639.0,0.03519521]
[1733118364917,0.34114521,96640.0,96639.0,0.03519521]
[1733118365162,0.45075427,96640.0,96639.0,0.03542033]
[1733118366060,0.44397667,96640.0,96639.0,0.03542033]
[1733118366312,0.3479406,96640.0,96639.0,0.00412433]
[1733118366493,0.34114521,96640.0,96639.0,0.00412433]
[1733118366843,0.3479406,96640.0,96639.0,0.00412433]
[1733118367257,0.34114521,96640.0,96639.0,0.00412433]
[1733118367680,0.3479406,96640.0,96639.0,0.00412433]
[1733118368227,0.34114521,96640.0,96639.0,0.00412433]
[1733118368457,0.3479406,96640.0,96639.0,0.00412433]
[1733118368638,0.3479406,96640.0,96639.0,0.00389921]
[1733118369071,0.34114521,96640.0,96639.0,0.00389921]
[1733118369549,0.433194,96621.0,96620.0,0.0008653]
[1733118369758,0.38953921,96621.0,96620.0,0.0008653]
[1733118369970,0.30983921,96621.0,96620.0,0.0008653]
[1733118370795,0.30983921,96621.0,96620.0,0.0018653]
[1733118370796,0.31883921,96621.0,96620.0,0.0018653]
[1733118371025,0.31483921,96621.0,96620.0,0.0008653]
[1733118371448,0.32383921,96621.0,96620.0,0.0018653]
[1733118371651,0.31883921,96621.0,96620.0,0.0008653]
[1733118372068,0.32783921,96621.0,96620.0,0.0018653]
[1733118372284,0.33283921,96621.0,96620.0,0.00206161]
[1733118373587,0.32783921,96621.0,96620.0,0.00206161]
[1733118374007,0.33183921,96621.0,96620.0,0.00206161]
[1733118375673,0.228994,96621.0,96620.0,0.00206161]
[1733118375887,0.228994,96621.0,96620.0,0.0786653]
[1733118375888,0.022,96621.0,96620.0,0.0786653]
[1733118376130,0.022,96621.0,96620.0,0.48989072]
[1733118376339,0.02428716,96621.0,96620.0,0.0786653]
[1733118376608,0.02428716,96621.0,96620.0,0.0018653]
[1733118379449,0.02428716,96621.0,96620.0,0.00197567]
[1733118380092,0.10308716,96621.0,96620.0,0.00197567]
[1733118380556,0.02428716,96621.0,96620.0,0.00197567]
[1733118382403,0.02428716,96621.0,96620.0,0.41384826]
[1733118383578,0.02428716,96621.0,96620.0,0.00197567]
[1733118391967,0.25153237,96621.0,96620.0,0.00197567]
[1733118392217,0.59226811,96621.0,96620.0,0.00197567]
[1733118392674,0.58826811,96621.0,96620.0,0.00197567]
[1733118392917,0.57026811,96621.0,96620.0,0.00097567]
[1733118393164,0.57526811,96621.0,96620.0,0.00097567]
[1733118393412,0.49124521,96621.0,96620.0,0.00097567]
[1733118393635,0.47724521,96621.0,96620.0,0.00097567]
[1733118393858,0.48224521,96621.0,96620.0,0.00097567]
[1733118394085,0.49124521,96621.0,96620.0,0.00097567]
[1733118395698,0.34124521,96621.0,96620.0,0.00097567]
[1733118396174,0.35613671,96621.0,96620.0,0.00097567]
[1733118396624,0.45613671,96621.0,96620.0,0.00097567]
[1733118398221,0.35613671,96621.0,96620.0,0.00097567]
[1733118408558,0.43383671,96621.0,96620.0,0.00097567]
[1733118411733,0.2532915,96621.0,96620.0,0.00097567]
[1733118412160,0.2532915,96621.0,96620.0,0.41304979]
[1733118412388,0.2532915,96621.0,96620.0,0.00097567]
[1733118412640,0.2532915,96621.0,96620.0,0.43605365]
[1733118412861,0.2532915,96621.0,96620.0,0.03948059]